[Event "December 19 Early 2023"]
[Site "https://www.chess.com"]
[Date "2023.12.19"]
[Round "11"]
[White "Sadovsky, Artem"]
[Black "Limontaite, Simona"]
[Result "1-0"]
[Board "108"]
[TimeControl "180+1"]
[WhiteFideId "4155840"]
[BlackFideId "12802506"]
[WhiteElo "2314"]
[BlackElo "2092"]
[WhiteTeam "FID"]
[BlackTeam "LTU"]
[WhiteClock "0:00:04"]
[BlackClock "0:00:00"]

1. Nf3 {[%clk 0:03:00]}  Nf6 {[%clk 0:02:58]} 2. e3 {[%clk 0:03:01]}  e6 {[%clk 0:02:58]} 3. b3 {[%clk 0:03:02]}  b6 {[%clk 0:02:59]} 4. Bb2 {[%clk 0:03:03]}  Bb7 {[%clk 0:03:00]} 5. Be2 {[%clk 0:03:04]}  Be7 {[%clk 0:03:00]} 6. O-O {[%clk 0:03:05]}  O-O {[%clk 0:03:00]} 7. c4 {[%clk 0:03:06]}  d6 {[%clk 0:03:01]} 8. d4 {[%clk 0:03:06]}  Nbd7 {[%clk 0:03:02]} 9. Nc3 {[%clk 0:03:06]}  Re8 {[%clk 0:03:02]} 10. Qc2 {[%clk 0:03:06]}  Bf8 {[%clk 0:03:03]} 11. Rad1 {[%clk 0:03:07]}  g6 {[%clk 0:03:03]} 12. e4 {[%clk 0:03:08]}  Qe7 {[%clk 0:03:02]} 13. Rfe1 {[%clk 0:03:08]}  Bg7 {[%clk 0:03:02]} 14. Bf1 {[%clk 0:03:08]}  e5 {[%clk 0:03:00]} 15. Nd5 {[%clk 0:03:08]}  Nxd5 {[%clk 0:02:54]} 16. exd5 {[%clk 0:03:09]}  f6 {[%clk 0:02:48]} 17. dxe5 {[%clk 0:03:07]}  fxe5 {[%clk 0:02:48]} 18. Nd4 {[%clk 0:03:08]}  Nf8 {[%clk 0:02:42]} 19. g3 {[%clk 0:02:51]}  Qf7 {[%clk 0:02:43]} 20. Nc6 {[%clk 0:02:45]}  Bxc6 {[%clk 0:02:40]} 21. dxc6 {[%clk 0:02:46]}  Kh8 {[%clk 0:02:39]} 22. Bg2 {[%clk 0:02:47]}  Ne6 {[%clk 0:02:37]} 23. Bd5 {[%clk 0:02:48]}  Qf5 {[%clk 0:02:30]} 24. Qxf5 {[%clk 0:02:43]}  gxf5 {[%clk 0:02:30]} 25. f4 {[%clk 0:02:44]}  e4 {[%clk 0:02:29]} 26. Bxg7+ {[%clk 0:02:34]}  Kxg7 {[%clk 0:02:30]} 27. Bxe6 {[%clk 0:02:35]}  Rxe6 {[%clk 0:02:30]} 28. Rd5 {[%clk 0:02:36]}  Rf8 {[%clk 0:02:19]} 29. Kf2 {[%clk 0:02:36]}  Rff6 {[%clk 0:02:14]} 30. Ke3 {[%clk 0:02:37]}  Kf7 {[%clk 0:02:06]} 31. Re2 {[%clk 0:02:37]}  Ke7 {[%clk 0:02:05]} 32. a4 {[%clk 0:02:37]}  a5 {[%clk 0:02:03]} 33. Rb2 {[%clk 0:02:37]}  Rf7 {[%clk 0:01:56]} 34. b4 {[%clk 0:02:37]}  axb4 {[%clk 0:01:57]} 35. Rxb4 {[%clk 0:02:38]}  Rh6 {[%clk 0:01:57]} 36. Rb2 {[%clk 0:02:38]}  Ke6 {[%clk 0:01:56]} 37. a5 {[%clk 0:02:38]}  bxa5 {[%clk 0:01:56]} 38. Rxa5 {[%clk 0:02:39]}  Rg6 {[%clk 0:01:52]} 39. Kd4 {[%clk 0:02:39]}  h5 {[%clk 0:01:52]} 40. Rb8 {[%clk 0:02:36]}  h4 {[%clk 0:01:51]} 41. Re8+ {[%clk 0:02:36]}  Kf6 {[%clk 0:01:51]} 42. gxh4 {[%clk 0:02:22]}  Rh6 {[%clk 0:01:51]} 43. Kd5 {[%clk 0:02:01]}  Rxh4 {[%clk 0:01:49]} 44. Re6+ {[%clk 0:02:02]}  Kg7 {[%clk 0:01:48]} 45. Ra7 {[%clk 0:02:02]}  Rxf4 {[%clk 0:01:39]} 46. Rxd6 {[%clk 0:02:02]}  e3 {[%clk 0:01:31]} 47. Rd7 {[%clk 0:01:48]}  e2 {[%clk 0:01:27]} 48. Raxc7 {[%clk 0:01:39]}  e1=Q {[%clk 0:01:10]} 49. Rxf7+ {[%clk 0:01:39]}  Kg6 {[%clk 0:01:10]} 50. Rg7+ {[%clk 0:00:58]}  Kh5 {[%clk 0:01:09]} 51. Rh7+ {[%clk 0:00:59]}  Kg4 {[%clk 0:01:08]} 52. Rcg7+ {[%clk 0:00:58]}  Kf3 {[%clk 0:01:08]} 53. c7 {[%clk 0:00:41]}  Qe4+ {[%clk 0:01:02]} 54. Kd6 {[%clk 0:00:42]}  Qxc4 {[%clk 0:01:01]} 55. Rg3+ {[%clk 0:00:31]}  Kf2 {[%clk 0:00:59]} 56. Ke5 {[%clk 0:00:29]}  Re4+ {[%clk 0:00:47]} 57. Kxf5 {[%clk 0:00:17]}  Qd5+ {[%clk 0:00:41]} 58. Kf6 {[%clk 0:00:18]}  Re6+ {[%clk 0:00:35]} 59. Kg7 {[%clk 0:00:17]}  Qd7+ {[%clk 0:00:21]} 60. Kh8 {[%clk 0:00:17]}  Qd4+ {[%clk 0:00:21]} 61. Rhg7 {[%clk 0:00:16]}  Re8+ {[%clk 0:00:18]} 62. Kh7 {[%clk 0:00:16]}  Qh4+ {[%clk 0:00:18]} 63. Kg6 {[%clk 0:00:17]}  Qe4+ {[%clk 0:00:14]} 64. Kg5 {[%clk 0:00:10]}  Qe5+ {[%clk 0:00:12]} 65. Kg4 {[%clk 0:00:09]}  Rc8 {[%clk 0:00:12]} 66. Rf7+ {[%clk 0:00:09]}  Ke2 {[%clk 0:00:12]} 67. Rg2+ {[%clk 0:00:09]}  Kd3 {[%clk 0:00:11]} 68. Rg3+ {[%clk 0:00:09]}  Kc4 {[%clk 0:00:11]} 69. Rf4+ {[%clk 0:00:09]}  Kd5 {[%clk 0:00:11]} 70. Rd3+ {[%clk 0:00:05]}  Ke6 {[%clk 0:00:11]} 71. Kf3 {[%clk 0:00:03]}  Qxc7 {[%clk 0:00:10]} 72. Re3+ {[%clk 0:00:02]}  Kd5 {[%clk 0:00:11]} 73. Rf5+ {[%clk 0:00:02]}  Kd6 {[%clk 0:00:11]} 74. Rf6+ {[%clk 0:00:02]}  Kc5 {[%clk 0:00:10]} 75. Rc3+ {[%clk 0:00:02]}  Kd4 {[%clk 0:00:11]} 76. Rxc7 {[%clk 0:00:02]}  Rxc7 {[%clk 0:00:12]} 77. h4 {[%clk 0:00:02]}  Rh7 {[%clk 0:00:12]} 78. Kg4 {[%clk 0:00:01]}  Ke5 {[%clk 0:00:12]} 79. Rg6 {[%clk 0:00:02]}  Rh8 {[%clk 0:00:10]} 80. h5 {[%clk 0:00:02]}  Rh7 {[%clk 0:00:09]} 81. h6 {[%clk 0:00:02]}  Rh8 {[%clk 0:00:10]} 82. Kg5 {[%clk 0:00:03]}  Rh7 {[%clk 0:00:10]} 83. Rg7 {[%clk 0:00:03]}  Rh8 {[%clk 0:00:10]} 84. Kg6 {[%clk 0:00:04]}  Ke6 {[%clk 0:00:00]} 85. h7 {[%clk 0:00:04]} 1-0

[Event "December 19 Early 2023"]
[Site "https://www.chess.com"]
[Date "2023.12.19"]
[Round "11"]
[White "Ernst, Luca"]
[Black "Kraus, Tomas"]
[Result "1-0"]
[Board "115"]
[TimeControl "180+1"]
[WhiteFideId "45117055"]
[BlackFideId "331708"]
[WhiteElo "1973"]
[BlackElo "2371"]
[WhiteTeam "FRA"]
[BlackTeam "CZE"]
[WhiteClock "0:00:11"]
[BlackClock "0:00:00"]

1. e4 {[%clk 0:03:00]}  c5 {[%clk 0:02:46]} 2. Nf3 {[%clk 0:03:00]}  e6 {[%clk 0:02:45]} 3. d4 {[%clk 0:03:00]}  cxd4 {[%clk 0:02:45]} 4. Nxd4 {[%clk 0:03:01]}  a6 {[%clk 0:02:46]} 5. Nc3 {[%clk 0:02:57]}  Qc7 {[%clk 0:02:45]} 6. g3 {[%clk 0:02:55]}  b5 {[%clk 0:02:42]} 7. Bg2 {[%clk 0:02:45]}  Bb7 {[%clk 0:02:42]} 8. a3 {[%clk 0:02:40]}  Nc6 {[%clk 0:02:37]} 9. Nxc6 {[%clk 0:02:37]}  dxc6 {[%clk 0:02:36]} 10. Be3 {[%clk 0:02:34]}  Rd8 {[%clk 0:02:34]} 11. Qe2 {[%clk 0:02:34]}  c5 {[%clk 0:02:33]} 12. O-O {[%clk 0:02:25]}  Nf6 {[%clk 0:02:28]} 13. Bf4 {[%clk 0:02:11]}  e5 {[%clk 0:02:14]} 14. Bg5 {[%clk 0:02:11]}  Be7 {[%clk 0:02:14]} 15. Rfd1 {[%clk 0:02:08]}  O-O {[%clk 0:02:14]} 16. Rxd8 {[%clk 0:01:54]}  Rxd8 {[%clk 0:02:13]} 17. Rd1 {[%clk 0:01:54]}  h6 {[%clk 0:01:59]} 18. Bxf6 {[%clk 0:01:52]}  Bxf6 {[%clk 0:01:59]} 19. Nd5 {[%clk 0:01:44]}  Bxd5 {[%clk 0:01:51]} 20. exd5 {[%clk 0:01:43]}  c4 {[%clk 0:01:37]} 21. Be4 {[%clk 0:01:33]}  Rd6 {[%clk 0:01:35]} 22. c3 {[%clk 0:01:28]}  Qc5 {[%clk 0:01:33]} 23. Qf3 {[%clk 0:01:26]}  Qc8 {[%clk 0:01:20]} 24. h4 {[%clk 0:01:26]}  g5 {[%clk 0:01:09]} 25. hxg5 {[%clk 0:01:13]}  Bxg5 {[%clk 0:01:09]} 26. Kg2 {[%clk 0:01:09]}  Rf6 {[%clk 0:01:03]} 27. Qh5 {[%clk 0:01:05]}  Qc5 {[%clk 0:01:02]} 28. Qe2 {[%clk 0:00:56]}  a5 {[%clk 0:00:53]} 29. Bf3 {[%clk 0:00:56]}  b4 {[%clk 0:00:50]} 30. axb4 {[%clk 0:00:49]}  axb4 {[%clk 0:00:49]} 31. Qxe5 {[%clk 0:00:47]}  bxc3 {[%clk 0:00:40]} 32. bxc3 {[%clk 0:00:46]}  Qa3 {[%clk 0:00:24]} 33. d6 {[%clk 0:00:42]}  Re6 {[%clk 0:00:24]} 34. Qd4 {[%clk 0:00:33]}  Qa2 {[%clk 0:00:17]} 35. d7 {[%clk 0:00:29]}  Bd8 {[%clk 0:00:09]} 36. Bd5 {[%clk 0:00:25]}  Rf6 {[%clk 0:00:07]} 37. Bxc4 {[%clk 0:00:23]}  Qc2 {[%clk 0:00:06]} 38. Rd2 {[%clk 0:00:22]}  Qc1 {[%clk 0:00:05]} 39. Bf1 {[%clk 0:00:21]}  Qe1 {[%clk 0:00:03]} 40. Qe3 {[%clk 0:00:19]}  Qc1 {[%clk 0:00:02]} 41. Qe8+ {[%clk 0:00:19]}  Kg7 {[%clk 0:00:03]} 42. Re2 {[%clk 0:00:15]}  Qxc3 {[%clk 0:00:01]} 43. Qxd8 {[%clk 0:00:15]}  Qc6+ {[%clk 0:00:02]} 44. Kg1 {[%clk 0:00:15]}  Qf3 {[%clk 0:00:02]} 45. Qb8 {[%clk 0:00:11]}  Rf5 {[%clk 0:00:02]} 46. d8=Q {[%clk 0:00:09]}  Rh5 {[%clk 0:00:02]} 47. Qh4 {[%clk 0:00:10]}  Rxh4 {[%clk 0:00:01]} 48. gxh4 {[%clk 0:00:11]}  Qg4+ {[%clk 0:00:02]} 49. Qg3 {[%clk 0:00:11]}  Qxg3+ {[%clk 0:00:02]} 50. fxg3 {[%clk 0:00:12]}  f5 {[%clk 0:00:02]} 51. Bh3 {[%clk 0:00:11]}  Kg6 {[%clk 0:00:03]} 52. Rf2 {[%clk 0:00:12]}  f4 {[%clk 0:00:02]} 53. Rxf4 {[%clk 0:00:11]}  h5 {[%clk 0:00:00]} 54. Ra4 {[%clk 0:00:11]} 1-0

[Event "December 19 Early 2023"]
[Site "https://www.chess.com"]
[Date "2023.12.19"]
[Round "11"]
[White "Semenova, Alina"]
[Black "Bon, Michael"]
[Result "1-0"]
[Board "120"]
[TimeControl "180+1"]
[WhiteFideId "24113875"]
[BlackFideId "620696"]
[WhiteElo "1827"]
[BlackElo "2368"]
[WhiteTeam "RUS"]
[BlackTeam "FRA"]
[WhiteClock "0:00:40"]
[BlackClock "0:00:00"]

1. e4 {[%clk 0:03:00]}  e6 {[%clk 0:03:00]} 2. d4 {[%clk 0:02:58]}  d5 {[%clk 0:03:00]} 3. exd5 {[%clk 0:02:58]}  exd5 {[%clk 0:03:01]} 4. Nf3 {[%clk 0:02:58]}  Bd6 {[%clk 0:03:01]} 5. Bd3 {[%clk 0:02:59]}  Ne7 {[%clk 0:03:02]} 6. O-O {[%clk 0:02:58]}  O-O {[%clk 0:03:02]} 7. c3 {[%clk 0:02:56]}  Bf5 {[%clk 0:03:02]} 8. Bg5 {[%clk 0:02:52]}  f6 {[%clk 0:03:01]} 9. Bh4 {[%clk 0:02:52]}  Qd7 {[%clk 0:02:51]} 10. Bg3 {[%clk 0:02:48]}  Bxd3 {[%clk 0:02:46]} 11. Qxd3 {[%clk 0:02:47]}  Nf5 {[%clk 0:02:46]} 12. Nbd2 {[%clk 0:02:46]}  Nxg3 {[%clk 0:02:45]} 13. hxg3 {[%clk 0:02:47]}  c6 {[%clk 0:02:42]} 14. Rfe1 {[%clk 0:02:46]}  Na6 {[%clk 0:02:42]} 15. Nf1 {[%clk 0:02:43]}  Rae8 {[%clk 0:02:41]} 16. Ne3 {[%clk 0:02:42]}  g6 {[%clk 0:02:35]} 17. a4 {[%clk 0:02:39]}  Nc7 {[%clk 0:02:25]} 18. Re2 {[%clk 0:02:27]}  Rf7 {[%clk 0:02:24]} 19. Rae1 {[%clk 0:02:27]}  Rfe7 {[%clk 0:02:24]} 20. Nf1 {[%clk 0:02:24]}  Rxe2 {[%clk 0:02:23]} 21. Rxe2 {[%clk 0:02:25]}  Rxe2 {[%clk 0:02:23]} 22. Qxe2 {[%clk 0:02:24]}  Qe7 {[%clk 0:02:23]} 23. Qxe7 {[%clk 0:02:24]}  Bxe7 {[%clk 0:02:24]} 24. Ne3 {[%clk 0:02:22]}  Kf7 {[%clk 0:02:24]} 25. Kf1 {[%clk 0:02:22]}  Ne6 {[%clk 0:02:22]} 26. Ke2 {[%clk 0:02:22]}  h6 {[%clk 0:02:18]} 27. Kd3 {[%clk 0:02:21]}  Bd6 {[%clk 0:02:18]} 28. b4 {[%clk 0:02:07]}  Nc7 {[%clk 0:02:14]} 29. Nd2 {[%clk 0:02:07]}  f5 {[%clk 0:02:09]} 30. Nb3 {[%clk 0:02:06]}  b6 {[%clk 0:02:02]} 31. b5 {[%clk 0:01:54]}  cxb5 {[%clk 0:01:19]} 32. axb5 {[%clk 0:01:55]}  Ke6 {[%clk 0:01:16]} 33. c4 {[%clk 0:01:55]}  Be7 {[%clk 0:01:08]} 34. Nd2 {[%clk 0:01:49]}  Bb4 {[%clk 0:00:59]} 35. Ndf1 {[%clk 0:01:46]}  Be1 {[%clk 0:00:54]} 36. cxd5+ {[%clk 0:01:35]}  Nxd5 {[%clk 0:00:55]} 37. Nxd5 {[%clk 0:01:35]}  Kxd5 {[%clk 0:00:55]} 38. Ne3+ {[%clk 0:01:36]}  Kd6 {[%clk 0:00:44]} 39. Ke2 {[%clk 0:01:35]}  Bc3 {[%clk 0:00:38]} 40. Nc2 {[%clk 0:01:35]}  Kd5 {[%clk 0:00:35]} 41. Kd3 {[%clk 0:01:35]}  Ba5 {[%clk 0:00:32]} 42. f3 {[%clk 0:01:33]}  g5 {[%clk 0:00:20]} 43. g4 {[%clk 0:01:31]}  fxg4 {[%clk 0:00:18]} 44. fxg4 {[%clk 0:01:32]}  Kd6 {[%clk 0:00:13]} 45. Ke4 {[%clk 0:01:32]}  Bd2 {[%clk 0:00:12]} 46. Na3 {[%clk 0:01:32]}  Bf4 {[%clk 0:00:08]} 47. Nc4+ {[%clk 0:01:32]}  Ke6 {[%clk 0:00:08]} 48. Nb2 {[%clk 0:01:10]}  Kd6 {[%clk 0:00:07]} 49. Nd3 {[%clk 0:01:10]}  Bg3 {[%clk 0:00:07]} 50. Nb4 {[%clk 0:01:10]}  Kc7 {[%clk 0:00:05]} 51. Nd5+ {[%clk 0:01:10]}  Kb7 {[%clk 0:00:05]} 52. Nb4 {[%clk 0:01:02]}  a5 {[%clk 0:00:05]} 53. bxa6+ {[%clk 0:01:02]}  Ka7 {[%clk 0:00:06]} 54. d5 {[%clk 0:01:00]}  Be1 {[%clk 0:00:05]} 55. Nd3 {[%clk 0:00:54]}  Bg3 {[%clk 0:00:05]} 56. Nb4 {[%clk 0:00:55]}  Be1 {[%clk 0:00:05]} 57. Nc6+ {[%clk 0:00:54]}  Kxa6 {[%clk 0:00:05]} 58. d6 {[%clk 0:00:54]}  Kb7 {[%clk 0:00:05]} 59. d7 {[%clk 0:00:54]}  Kxc6 {[%clk 0:00:02]} 60. d8=Q {[%clk 0:00:55]}  Kb5 {[%clk 0:00:03]} 61. Qd3+ {[%clk 0:00:53]}  Kc6 {[%clk 0:00:03]} 62. Qc2+ {[%clk 0:00:52]}  Kb7 {[%clk 0:00:03]} 63. Kf5 {[%clk 0:00:51]}  Ba5 {[%clk 0:00:03]} 64. Kg6 {[%clk 0:00:51]}  b5 {[%clk 0:00:04]} 65. Kxh6 {[%clk 0:00:50]}  Bd8 {[%clk 0:00:03]} 66. Qb3 {[%clk 0:00:48]}  Kc6 {[%clk 0:00:02]} 67. Qe6+ {[%clk 0:00:46]}  Kc7 {[%clk 0:00:02]} 68. Kg6 {[%clk 0:00:43]}  b4 {[%clk 0:00:01]} 69. Qc4+ {[%clk 0:00:43]}  Kd7 {[%clk 0:00:02]} 70. Qxb4 {[%clk 0:00:44]}  Be7 {[%clk 0:00:03]} 71. Qd4+ {[%clk 0:00:44]}  Ke8 {[%clk 0:00:03]} 72. Qe5 {[%clk 0:00:43]}  Kf8 {[%clk 0:00:04]} 73. Qe6 {[%clk 0:00:42]}  Ke8 {[%clk 0:00:05]} 74. Kg7 {[%clk 0:00:40]}  Kd8 {[%clk 0:00:05]} 75. Kf7 {[%clk 0:00:40]}  Bc5 {[%clk 0:00:00]} 76. Qd5+ {[%clk 0:00:40]} 1-0

[Event "December 19 Early 2023"]
[Site "https://www.chess.com"]
[Date "2023.12.19"]
[Round "11"]
[White "Kolmagorov, Alexey"]
[Black "Piddubna, Bozhena"]
[Result "1/2-1/2"]
[Board "121"]
[TimeControl "180+1"]
[WhiteFideId "34129402"]
[BlackFideId "34109293"]
[WhiteElo "1989"]
[BlackElo "1874"]
[WhiteTeam "RUS"]
[BlackTeam "UKR"]
[WhiteClock "0:00:04"]
[BlackClock "0:00:05"]

1. Nf3 {[%clk 0:02:59]}  Nf6 {[%clk 0:03:00]} 2. c4 {[%clk 0:02:59]}  e6 {[%clk 0:03:00]} 3. g3 {[%clk 0:03:00]}  b6 {[%clk 0:03:00]} 4. Bg2 {[%clk 0:03:00]}  Bb7 {[%clk 0:03:00]} 5. O-O {[%clk 0:03:00]}  Be7 {[%clk 0:03:00]} 6. d4 {[%clk 0:03:01]}  O-O {[%clk 0:03:00]} 7. Re1 {[%clk 0:03:01]}  Ne4 {[%clk 0:03:00]} 8. Qc2 {[%clk 0:02:52]}  f5 {[%clk 0:02:54]} 9. Nfd2 {[%clk 0:02:49]}  d5 {[%clk 0:02:47]} 10. f3 {[%clk 0:02:39]}  Nf6 {[%clk 0:02:39]} 11. b3 {[%clk 0:02:33]}  Nbd7 {[%clk 0:02:39]} 12. Bb2 {[%clk 0:02:33]}  Rc8 {[%clk 0:02:38]} 13. e4 {[%clk 0:02:31]}  c5 {[%clk 0:02:28]} 14. exf5 {[%clk 0:02:31]}  exf5 {[%clk 0:02:22]} 15. Qxf5 {[%clk 0:02:30]}  dxc4 {[%clk 0:02:06]} 16. Nxc4 {[%clk 0:02:24]}  cxd4 {[%clk 0:02:02]} 17. Bxd4 {[%clk 0:02:19]}  Kh8 {[%clk 0:02:00]} 18. Qd3 {[%clk 0:01:45]}  Ba6 {[%clk 0:01:41]} 19. Qe3 {[%clk 0:01:31]}  Bb4 {[%clk 0:01:32]} 20. Rd1 {[%clk 0:01:30]}  Bxc4 {[%clk 0:01:18]} 21. bxc4 {[%clk 0:01:29]}  Qc7 {[%clk 0:01:15]} 22. Nd2 {[%clk 0:01:22]}  Bxd2 {[%clk 0:01:03]} 23. Qxd2 {[%clk 0:01:21]}  Qxc4 {[%clk 0:01:00]} 24. Rac1 {[%clk 0:01:19]}  Qf7 {[%clk 0:00:48]} 25. Bb2 {[%clk 0:01:16]}  Nc5 {[%clk 0:00:40]} 26. Ba3 {[%clk 0:01:04]}  h6 {[%clk 0:00:35]} 27. Bxc5 {[%clk 0:01:02]}  bxc5 {[%clk 0:00:35]} 28. Qa5 {[%clk 0:01:01]}  Rfe8 {[%clk 0:00:20]} 29. Rc2 {[%clk 0:00:42]}  c4 {[%clk 0:00:17]} 30. Rdc1 {[%clk 0:00:43]}  Re7 {[%clk 0:00:10]} 31. Bh3 {[%clk 0:00:36]}  Rcc7 {[%clk 0:00:08]} 32. Qb5 {[%clk 0:00:29]}  Nd5 {[%clk 0:00:04]} 33. Rxc4 {[%clk 0:00:21]}  Rxc4 {[%clk 0:00:03]} 34. Qxc4 {[%clk 0:00:18]}  Qxf3 {[%clk 0:00:03]} 35. Bg2 {[%clk 0:00:15]}  Qe3+ {[%clk 0:00:03]} 36. Kh1 {[%clk 0:00:15]}  Nf6 {[%clk 0:00:02]} 37. Qc8+ {[%clk 0:00:14]}  Kh7 {[%clk 0:00:03]} 38. Qf5+ {[%clk 0:00:15]}  Kh8 {[%clk 0:00:01]} 39. Rc8+ {[%clk 0:00:15]}  Re8 {[%clk 0:00:02]} 40. Rxe8+ {[%clk 0:00:13]}  Qxe8 {[%clk 0:00:03]} 41. h3 {[%clk 0:00:13]}  Qe1+ {[%clk 0:00:03]} 42. Kh2 {[%clk 0:00:13]}  Qe8 {[%clk 0:00:04]} 43. Qa5 {[%clk 0:00:13]}  Qd7 {[%clk 0:00:04]} 44. Qa3 {[%clk 0:00:10]}  Kh7 {[%clk 0:00:04]} 45. Qa6 {[%clk 0:00:07]}  Qd4 {[%clk 0:00:04]} 46. a4 {[%clk 0:00:06]}  h5 {[%clk 0:00:05]} 47. Qb7 {[%clk 0:00:03]}  h4 {[%clk 0:00:04]} 48. gxh4 {[%clk 0:00:03]}  Qf4+ {[%clk 0:00:04]} 49. Kh1 {[%clk 0:00:03]}  Qc1+ {[%clk 0:00:04]} 50. Kh2 {[%clk 0:00:03]}  Qf4+ {[%clk 0:00:05]} 51. Kg1 {[%clk 0:00:03]}  Qc1+ {[%clk 0:00:05]} 52. Kh2 {[%clk 0:00:04]}  Qf4+ {[%clk 0:00:05]} 1/2-1/2

[Event "December 19 Early 2023"]
[Site "https://www.chess.com"]
[Date "2023.12.19"]
[Round "11"]
[White "Yushko, Olga"]
[Black "Kostiukov, Alexandr"]
[Result "0-1"]
[Board "123"]
[TimeControl "180+1"]
[WhiteFideId "14114500"]
[BlackFideId "14108100"]
[WhiteElo "1891"]
[BlackElo "2112"]
[WhiteTeam "UKR"]
[BlackTeam "UKR"]
[WhiteClock "0:00:10"]
[BlackClock "0:00:30"]

1. d4 {[%clk 0:03:00]}  g6 {[%clk 0:02:59]} 2. c4 {[%clk 0:03:00]}  Bg7 {[%clk 0:03:00]} 3. Nf3 {[%clk 0:03:01]}  d6 {[%clk 0:03:00]} 4. Bg5 {[%clk 0:03:00]}  h6 {[%clk 0:03:00]} 5. Bh4 {[%clk 0:03:00]}  g5 {[%clk 0:03:01]} 6. Bg3 {[%clk 0:03:01]}  f5 {[%clk 0:03:01]} 7. e3 {[%clk 0:03:00]}  Nf6 {[%clk 0:03:01]} 8. Nc3 {[%clk 0:03:00]}  Nc6 {[%clk 0:03:00]} 9. Bd3 {[%clk 0:02:59]}  e6 {[%clk 0:03:01]} 10. O-O {[%clk 0:02:59]}  Qe7 {[%clk 0:03:01]} 11. a3 {[%clk 0:02:57]}  O-O {[%clk 0:03:00]} 12. b4 {[%clk 0:02:56]}  e5 {[%clk 0:02:56]} 13. b5 {[%clk 0:02:43]}  e4 {[%clk 0:02:56]} 14. bxc6 {[%clk 0:02:41]}  bxc6 {[%clk 0:02:54]} 15. Be2 {[%clk 0:02:31]}  exf3 {[%clk 0:02:53]} 16. Bxf3 {[%clk 0:02:32]}  Bd7 {[%clk 0:02:49]} 17. Rb1 {[%clk 0:02:29]}  Rfb8 {[%clk 0:02:15]} 18. Qa4 {[%clk 0:02:29]}  Qe8 {[%clk 0:01:47]} 19. Rxb8 {[%clk 0:02:23]}  Rxb8 {[%clk 0:01:41]} 20. Qxa7 {[%clk 0:02:22]}  Qc8 {[%clk 0:01:38]} 21. Qa4 {[%clk 0:02:21]}  c5 {[%clk 0:01:38]} 22. Bc6 {[%clk 0:02:18]}  cxd4 {[%clk 0:01:34]} 23. exd4 {[%clk 0:02:17]}  f4 {[%clk 0:01:33]} 24. c5 {[%clk 0:01:17]}  dxc5 {[%clk 0:01:15]} 25. dxc5 {[%clk 0:01:09]}  Bxc6 {[%clk 0:01:08]} 26. Qxc6 {[%clk 0:01:10]}  Qd7 {[%clk 0:01:08]} 27. Qa6 {[%clk 0:01:00]}  fxg3 {[%clk 0:01:06]} 28. hxg3 {[%clk 0:01:01]}  Nd5 {[%clk 0:00:59]} 29. Ne4 {[%clk 0:00:46]}  Qf7 {[%clk 0:00:54]} 30. c6 {[%clk 0:00:43]}  Re8 {[%clk 0:00:53]} 31. Nc5 {[%clk 0:00:42]}  Bd4 {[%clk 0:00:49]} 32. Nd7 {[%clk 0:00:33]}  Re1 {[%clk 0:00:46]} 33. Qd3 {[%clk 0:00:15]}  Qxf2+ {[%clk 0:00:42]} 34. Kh2 {[%clk 0:00:14]}  Rxf1 {[%clk 0:00:38]} 35. Qg6+ {[%clk 0:00:14]}  Bg7 {[%clk 0:00:37]} 36. Qe8+ {[%clk 0:00:14]}  Kh7 {[%clk 0:00:30]} 37. Qe4+ {[%clk 0:00:10]}  Qf5 {[%clk 0:00:30]} 0-1

[Event "December 19 Early 2023"]
[Site "https://www.chess.com"]
[Date "2023.12.19"]
[Round "11"]
[White "Kornyukov, Alexey"]
[Black "Lopusiewicz, Piotr"]
[Result "0-1"]
[Board "126"]
[TimeControl "180+1"]
[WhiteFideId "4150457"]
[BlackFideId "1116029"]
[WhiteElo "2352"]
[BlackElo "2286"]
[WhiteTeam "RUS"]
[BlackTeam "POL"]
[WhiteClock "0:00:00"]
[BlackClock "0:01:21"]

1. e4 {[%clk 0:03:00]}  c5 {[%clk 0:02:58]} 2. Nf3 {[%clk 0:03:00]}  e6 {[%clk 0:02:59]} 3. c3 {[%clk 0:03:00]}  d5 {[%clk 0:02:57]} 4. exd5 {[%clk 0:02:59]}  exd5 {[%clk 0:02:58]} 5. d4 {[%clk 0:03:00]}  Nf6 {[%clk 0:02:55]} 6. Bb5+ {[%clk 0:02:53]}  Bd7 {[%clk 0:02:55]} 7. Bxd7+ {[%clk 0:02:51]}  Nbxd7 {[%clk 0:02:52]} 8. O-O {[%clk 0:02:51]}  Be7 {[%clk 0:02:52]} 9. dxc5 {[%clk 0:02:47]}  Nxc5 {[%clk 0:02:50]} 10. Bg5 {[%clk 0:02:43]}  O-O {[%clk 0:02:49]} 11. Re1 {[%clk 0:02:43]}  h6 {[%clk 0:02:48]} 12. Bh4 {[%clk 0:02:42]}  Re8 {[%clk 0:02:48]} 13. Nd4 {[%clk 0:02:38]}  Qd7 {[%clk 0:02:40]} 14. Nd2 {[%clk 0:02:25]}  Nd3 {[%clk 0:02:37]} 15. Re3 {[%clk 0:02:19]}  Nxb2 {[%clk 0:02:29]} 16. Qc2 {[%clk 0:02:11]}  Nc4 {[%clk 0:02:25]} 17. Nxc4 {[%clk 0:02:11]}  dxc4 {[%clk 0:02:25]} 18. Nf5 {[%clk 0:02:05]}  Nd5 {[%clk 0:02:12]} 19. Nxh6+ {[%clk 0:01:36]}  gxh6 {[%clk 0:02:06]} 20. Rg3+ {[%clk 0:01:34]}  Bg5 {[%clk 0:01:59]} 21. Bxg5 {[%clk 0:01:30]}  hxg5 {[%clk 0:01:59]} 22. Rxg5+ {[%clk 0:01:30]}  Kf8 {[%clk 0:01:59]} 23. Qh7 {[%clk 0:01:23]}  Ke7 {[%clk 0:01:42]} 24. Re1+ {[%clk 0:00:55]}  Kd6 {[%clk 0:01:42]} 25. Qh6+ {[%clk 0:00:28]}  Re6 {[%clk 0:01:38]} 26. Rxe6+ {[%clk 0:00:13]}  Qxe6 {[%clk 0:01:33]} 27. Qxe6+ {[%clk 0:00:10]}  fxe6 {[%clk 0:01:32]} 28. h4 {[%clk 0:00:10]}  Nxc3 {[%clk 0:01:32]} 29. h5 {[%clk 0:00:10]}  Nd5 {[%clk 0:01:26]} 30. Rg4 {[%clk 0:00:08]}  Rc8 {[%clk 0:01:24]} 31. h6 {[%clk 0:00:08]}  c3 {[%clk 0:01:24]} 32. Kh2 {[%clk 0:00:01]}  c2 {[%clk 0:01:23]} 33. h7 {[%clk 0:00:02]}  c1=Q {[%clk 0:01:22]} 34. Rg8 {[%clk 0:00:00]}  Qh6+ {[%clk 0:01:21]} 0-1